bitfinex/quotes_SOLUSD_20260109
["timestamp","ask_amount","ask_price","bid_price","bid_amount"]
[1767934640904,13.7999071,139.7,139.67,7.34760659]
[1767934644308,13.08,139.7,139.68,0.18802409]
[1767934645406,0.7199071,139.72,139.69,0.18802409]
[1767934645583,16.50794588,139.73,139.7,0.18802409]
[1767934645584,0.7199071,139.73,139.7,0.18802409]
[1767934645787,13.7799071,139.74,139.7,3.63596997]
[1767934645987,13.7799071,139.74,139.71,0.18802409]
[1767934647710,13.7799071,139.74,139.71,3.63596997]
[1767934648100,13.7799071,139.74,139.71,10.79349137]
[1767934649508,13.7799071,139.74,139.71,7.34554549]
[1767934649898,0.7199071,139.75,139.72,3.63596997]
[1767934650312,0.7199071,139.76,139.73,3.63596997]
[1767934650618,0.7199071,139.76,139.73,0.18802409]
[1767934652920,13.75429404,139.77,139.74,3.63596997]
[1767934654707,13.75429404,139.77,139.74,0.18802409]
[1767934655029,0.69429404,139.76,139.73,7.34426919]
[1767934655216,0.69429404,139.76,139.72,7.62935822]
[1767934655821,0.69429404,139.76,139.73,7.15663014]
[1767934656897,0.69429404,139.75,139.72,7.34506524]
[1767934658322,0.69429404,139.75,139.72,9.54938019]
[1767934658707,0.69429404,139.76,139.73,7.34465597]
[1767934658908,0.69429404,139.76,139.73,9.54897092]
[1767934659814,13.75429404,139.77,139.74,9.54835852]
[1767934660721,0.69429404,139.79,139.75,0.18802409]
[1767934660905,0.69429404,139.79,139.75,7.34363715]
[1767934661624,0.69429404,139.79,139.75,7.15561306]
[1767934663526,0.69429404,139.78,139.74,7.34403157]
[1767934663714,0.69429404,139.76,139.72,69.25681763]
[1767934663911,0.69429404,139.75,139.72,7.15681763]
[1767934668020,0.69429404,139.75,139.72,7.34484172]
[1767934668836,0.69429404,139.75,139.71,7.15752394]
[1767934669343,0.69429404,139.75,139.71,7.34554803]
[1767934673038,0.69429404,139.74,139.7,7.44239104]
[1767934673338,0.69429404,139.73,139.7,7.44239104]
[1767934673720,0.69429404,139.73,139.71,7.15765151]
[1767934674740,0.69429404,139.72,139.69,25.14619272]
[1767934682929,0.69429404,139.72,139.69,25.33421681]
[1767934694764,0.66021444,139.71,139.69,17.98798216]
[1767934696739,0.66021444,139.71,139.7,0.5]
[1767934700069,0.66021444,139.73,139.7,0.68802409]
[1767934700277,13.72021444,139.74,139.71,0.18802409]
[1767934700641,0.66021444,139.73,139.7,10.05053314]
[1767934701342,0.66021444,139.73,139.7,7.84621819]
[1767934703173,0.66021444,139.73,139.7,7.6581941]
[1767934705679,0.66021444,139.73,139.7,0.5]
[1767934705854,0.66021444,139.72,139.7,0.5]
[1767934710470,0.66021444,139.71,139.7,0.5]
[1767934710667,2.86452939,139.71,139.7,0.5]
[1767934711289,0.66021444,139.71,139.7,0.5]
[1767934711457,0.66021444,139.73,139.7,7.84604796]
[1767934712482,0.66021444,139.73,139.7,7.65802387]
[1767934716797,0.66021444,139.73,139.7,0.5]
[1767934718083,0.65354387,139.72,139.7,0.5]
[1767934732080,0.65354387,139.71,139.7,0.5]
[1767934737895,0.65354387,139.72,139.7,0.5]
[1767934738101,0.65354387,139.73,139.7,0.68802409]
[1767934738304,0.65354387,139.73,139.7,0.5]
[1767934739600,0.65354387,139.73,139.7,0.68802409]
[1767934740407,0.65354387,139.73,139.7,0.5]
[1767934744609,4.09974913,139.73,139.7,0.5]
[1767934744796,0.7059242,139.72,139.7,0.5]
[1767934746314,4.15212946,139.72,139.7,0.5]
[1767934746490,0.7059242,139.71,139.7,0.5]
[1767934746999,4.15212946,139.71,139.7,0.5]
[1767934747524,0.7059242,139.71,139.7,0.5]
[1767934749411,4.15212946,139.71,139.7,0.5]
[1767934749616,0.7059242,139.71,139.7,0.44]
[1767934753096,0.7059242,139.71,139.7,0.38]
[1767934753917,0.7059242,139.71,139.69,17.98798216]
[1767934754416,0.68842717,139.69,139.65,7.34863847]
[1767934754721,4.13463243,139.68,139.65,7.34863847]
[1767934756403,4.03483438,139.68,139.65,7.34863847]
[1767934756704,3.93503633,139.68,139.65,7.34863847]
[1767934757123,0.68842717,139.68,139.65,7.34863847]
[1767934757319,4.13463243,139.68,139.65,7.34863847]
[1767934760833,0.68842717,139.68,139.65,7.34863847]
[1767934761005,4.13463243,139.68,139.65,7.34863847]
[1767934764129,0.68842717,139.7,139.66,0.18802409]
[1767934764427,0.68842717,139.7,139.67,0.18802409]
[1767934764631,4.13463243,139.7,139.67,0.18802409]
[1767934764836,4.13463243,139.7,139.65,28.50871724]
[1767934764837,4.13463243,139.68,139.65,7.34863847]
[1767934765515,0.68842717,139.68,139.65,7.34863847]
[1767934766530,0.68842717,139.68,139.65,10.79484373]
[1767934766733,0.68842717,139.71,139.68,0.18802409]
[1767934766910,0.68842717,139.71,139.67,3.63422935]
[1767934767111,13.06,139.73,139.67,0.18802409]
[1767934767112,4.13463243,139.7,139.67,0.18802409]
[1767934767328,0.68842717,139.7,139.67,0.18802409]
[1767934769636,4.13463243,139.7,139.67,7.34740777]
[1767934770134,0.68842717,139.7,139.67,7.34740777]
[1767934772739,0.68842717,139.7,139.67,7.15938368]
[1767934773210,0.68842717,139.7,139.67,0.18802409]
[1767934779640,0.68842717,139.7,139.66,7.34815884]
[1767934782141,0.67883737,139.69,139.66,7.34815884]
[1767934789137,0.67883737,139.69,139.66,7.16013475]
[1767934789339,0.67883737,139.69,139.65,9.55483441]
[1767934789947,0.67883737,139.69,139.65,7.34862178]
[1767934790251,0.67883737,139.69,139.65,9.55483441]
[1767934791050,0.67883737,139.69,139.66,0.18802409]
[1767934797353,0.64883738,139.69,139.66,0.18802409]
[1767934797582,2.20621263,139.7,139.66,0.18802409]
[1767934799142,30.9525303,139.73,139.67,0.66975451]
[1767934799143,7.15731309,139.72,139.67,0.66975451]
[1767934799350,2.20621263,139.71,139.67,0.66975451]
[1767934799667,0.67883737,139.7,139.67,0.66975451]
[1767934800575,0.67883737,139.7,139.67,7.82944606]
[1767934802938,0.67883737,139.7,139.67,7.15969155]
[1767934803661,0.67130736,139.68,139.65,0.67462944]
[1767934803861,0.64130737,139.68,139.65,7.83505116]
[1767934804561,2.20621263,139.68,139.64,7.16110826]
[1767934804867,2.20621263,139.68,139.64,7.8357377]
[1767934805753,0.67130736,139.67,139.64,7.8357377]
[1767934805947,0.64130737,139.67,139.64,7.8357377]
[1767934807950,0.71811774,139.72,139.66,0.66609771]
[1767934808161,0.71811774,139.71,139.67,2.87231034]
[1767934808664,0.71811774,139.71,139.68,2.87231034]
[1767934809371,0.71811774,139.73,139.7,0.66609771]
[1767934809849,0.71811774,139.73,139.7,2.87231034]
[1767934810763,0.71811774,139.73,139.7,10.03018134]
[1767934811668,0.71811774,139.75,139.72,2.87231034]
[1767934812052,0.71811774,139.75,139.72,0.66609771]
[1767934813460,0.71811774,139.75,139.72,10.02923793]
[1767934815678,0.71811774,139.75,139.72,7.8230253]
[1767934815876,0.71811774,139.75,139.72,10.02923793]
[1767934816474,0.71811774,139.75,139.72,7.8230253]
[1767934816853,0.71811774,139.73,139.69,0.66609771]
[1767934817049,2.92433037,139.73,139.69,7.82431349]
[1767934817270,0.71811774,139.71,139.68,69.92525885]
[1767934817472,0.68811775,139.71,139.68,69.25916114]
[1767934817663,7.15618069,139.74,139.69,2.20621263]
[1767934817869,2.20621263,139.73,139.69,7.82452822]
[1767934819356,0.71811774,139.73,139.69,7.82452822]
[1767934820877,2.92433037,139.74,139.7,0.66609771]
[1767934821183,0.71811774,139.74,139.7,0.66609771]
[1767934821881,0.71811774,139.74,139.71,2.87231034]
[1767934822279,0.71811774,139.75,139.72,0.66609771]
[1767934822861,0.71811774,139.75,139.72,7.82318013]
[1767934823068,0.71811774,139.75,139.72,10.02939276]
[1767934823580,13.06,139.76,139.73,0.66609771]
[1767934824087,0.71811774,139.75,139.72,10.02939276]
[1767934824767,13.77811774,139.76,139.73,0.66609771]
[1767934824975,13.77811774,139.76,139.73,7.82235204]
[1767934826579,0.71811774,139.78,139.74,0.66609771]
[1767934826980,0.71811774,139.78,139.75,7.15563506]
[1767934828065,0.71811774,139.78,139.75,7.82173277]
[1767934828674,0.71811774,139.8,139.76,0.66609771]
[1767934830667,0.71811774,139.8,139.76,7.82075904]
[1767934832890,0.71811774,139.8,139.77,0.7014916]
[1767934833084,0.71811774,139.8,139.78,7.15409929]
[1767934834895,0.1,139.82,139.79,0.7014916]
[1767934835980,0.1,139.82,139.79,7.85477582]
[1767934836185,0.1,139.82,139.8,0.7014916]
[1767934837484,0.1,139.82,139.8,7.85444203]
[1767934839197,1e-08,139.82,139.81,0.7014916]
[1767934839698,1e-08,139.82,139.81,7.85405579]
[1767934840499,1e-08,139.82,139.81,7.15256419]
[1767934841800,1e-08,139.82,139.8,7.85439596]
[1767934847508,0.66939985,139.82,139.78,0.7014916]
[1767934847812,4.11024753,139.8,139.77,0.7014916]
[1767934848107,0.66939984,139.79,139.76,20.91626831]
[1767934848308,0.63939985,139.79,139.77,7.15460946]
[1767934848486,3.44084769,139.81,139.78,7.15406234]
[1767934848887,3.44084769,139.81,139.78,7.85555394]
[1767934849104,3.44084769,139.81,139.78,7.15403525]
[1767934849698,3.44084769,139.8,139.77,0.7014916]
[1767934850309,4.11024753,139.8,139.77,0.7014916]
[1767934851311,0.66939984,139.8,139.77,0.7014916]
[1767934853417,3.44084769,139.81,139.78,0.7014916]
[1767934853602,1e-08,139.82,139.79,0.7014916]
[1767934855489,1e-08,139.82,139.79,7.85463607]
[1767934859713,1e-08,139.82,139.81,0.7014916]
[1767934860096,0.1,139.83,139.82,0.7014916]
[1767934860292,0.76759551,139.84,139.81,3.44084769]
[1767934860689,0.76759551,139.84,139.81,4.14233929]
[1767934860895,0.76759551,139.86,139.83,4.14233929]
[1767934861097,0.1,139.86,139.85,0.7014916]
[1767934861293,0.1,139.86,139.84,0.7014916]
[1767934865207,0.1,139.86,139.85,0.65482875]
[1767934865530,0.00867623,139.89,139.87,0.65482875]
[1767934867224,0.00867623,139.89,139.88,0.65482875]
[1767934867407,3.54084769,139.91,139.88,13.06]
[1767934867408,0.71508219,139.91,139.88,13.06]
[1767934867611,4.15592988,139.91,139.88,13.06]
[1767934867816,3.44084769,139.9,139.88,13.06]
[1767934868197,4.14725365,139.9,139.88,13.06]
[1767934868905,4.14725365,139.9,139.86,20.88929647]
[1767934869326,4.14725365,139.9,139.87,0.67942581]
[1767934869538,4.15592988,139.91,139.88,0.67942581]
[1767934870618,3.44084769,139.9,139.88,0.67942581]
[1767934870817,3.44084769,139.9,139.88,0.61942581]
[1767934871224,4.15592988,139.91,139.88,0.61942581]
[1767934873933,4.15592988,139.91,139.88,0.55942581]
[1767934874338,0.71508219,139.91,139.88,0.55942581]
[1767934874519,4.15592988,139.91,139.88,0.55942581]
[1767934874914,3.44084769,139.9,139.88,0.55942581]
[1767934875128,4.15592988,139.91,139.88,0.49942581]
[1767934875329,0.00867623,139.91,139.88,0.49942581]
[1767934875839,0.00867623,139.91,139.88,7.64835148]
[1767934876334,3.44952392,139.91,139.88,0.49942581]
[1767934876542,3.44084769,139.89,139.86,13.06]
[1767934876845,0.70640596,139.86,139.79,65.54952392]
[1767934877143,4.14725365,139.84,139.81,7.15222431]
[1767934877343,4.14725365,139.84,139.81,0.67942581]
[1767934877916,3.44084769,139.83,139.81,0.67942581]
[1767934878222,3.44952392,139.91,139.82,7.83101111]
[1767934878223,0.70640596,139.87,139.82,7.83101111]
[1767934878424,4.14725365,139.86,139.83,0.67942581]
[1767934878623,4.14725365,139.84,139.81,13.06]
[1767934879017,3.44084769,139.83,139.81,13.06]
[1767934879639,4.14725365,139.84,139.81,13.06]
[1767934881346,7.15037911,139.86,139.81,20.8918817]
[1767934881347,4.14725365,139.85,139.81,20.8918817]
[1767934881547,4.14725365,139.84,139.81,13.73942581]
[1767934881732,4.14725365,139.84,139.81,13.06]
[1767934882945,0.70640596,139.84,139.81,20.21253913]
[1767934883147,0.70640596,139.84,139.81,20.89196494]
[1767934883334,0.70640596,139.86,139.82,0.67942581]
[1767934883536,0.70640596,139.88,139.82,0.96374895]
[1767934883743,4.14725365,139.86,139.82,0.67942581]
[1767934884448,4.14725365,139.85,139.82,7.15176963]
[1767934884750,0.70640596,139.84,139.82,20.21176963]
[1767934887326,0.70640596,139.85,139.82,20.21176963]
[1767934887835,0.70640596,139.86,139.83,0.67942581]
[1767934890161,7.14832132,139.9,139.84,7.83045555]
[1767934890162,0.70640596,139.88,139.84,7.83045555]
[1767934890847,4.14725365,139.88,139.84,7.83045555]
[1767934893061,0.67864192,139.87,139.84,7.15102974]
[1767934895331,0.67864192,139.87,139.84,7.83690131]
[1767934901169,7.15630543,139.91,139.85,0.68587157]
[1767934901170,0.67864192,139.89,139.85,0.68587157]
[1767934901344,0.67864192,139.88,139.85,13.74587157]
[1767934902156,0.67864192,139.88,139.85,20.89603415]
[1767934902885,2.20076143,139.9,139.86,0.68587157]
[1767934903679,2.20943766,139.91,139.87,0.68587157]
[1767934904251,0.00867623,139.91,139.88,7.14898484]
[1767934904449,0.00867623,139.91,139.88,20.20898484]
[1767934904874,0.68731815,139.91,139.88,20.20898484]
[1767934905466,0.42005039,139.9,139.88,13.06]
[1767934905671,0.25600562,139.89,139.88,13.06]
[1767934905888,2.20076143,139.9,139.88,13.06]
[1767934907067,2.20943766,139.91,139.88,13.06]
[1767934907855,2.20943766,139.91,139.88,13.74587157]
[1767934908778,2.30843766,139.91,139.88,13.74587157]
[1767934909070,2.20943766,139.91,139.89,0.68587157]
[1767934909373,2.20943766,139.91,139.88,20.89476897]
[1767934909570,0.00867623,139.91,139.88,0.68587157]
[1767934909875,2.30639566,139.89,139.85,20.8962715]
[1767934910055,2.20076143,139.88,139.85,20.8962715]
[1767934910252,2.20076143,139.87,139.85,13.06]
[1767934910648,0.32687924,139.9,139.85,20.89590812]
[1767934910856,2.20076143,139.89,139.85,20.89590812]
[1767934911664,0.32460044,139.88,139.85,20.89590812]
[1767934911870,2.20076143,139.89,139.86,0.68587157]
[1767934912271,2.20076143,139.89,139.86,7.83576707]
[1767934912769,2.52764067,139.9,139.86,7.83576707]
[1767934915875,0.33555547,139.91,139.87,0.68587157]
[1767934916080,2.29976143,139.9,139.87,0.68587157]
[1767934916868,2.29976143,139.9,139.87,7.83534624]
[1767934919781,2.29976143,139.9,139.85,95.2360036]
[1767934919782,0.32236699,139.87,139.85,62.1]
[1767934920084,2.22628339,139.87,139.84,7.15085067]
[1767934920477,2.20076143,139.88,139.85,0.68587157]
[1767934920781,2.20076143,139.87,139.84,0.68587157]
[1767934921365,2.20076143,139.86,139.82,0.68587157]
[1767934921564,2.20076143,139.85,139.82,0.68587157]
[1767934923589,2.20076143,139.83,139.8,13.78419692]
[1767934923882,2.23079564,139.84,139.8,13.06]
[1767934924074,0.03003421,139.85,139.81,0.72419692]
[1767934924280,2.23079564,139.85,139.81,0.72419692]
[1767934926074,2.20076143,139.86,139.82,0.72419692]
[1767934926258,2.23079564,139.86,139.82,0.72419692]
[1767934926989,2.20076143,139.86,139.82,0.72419692]
[1767934927710,2.20076143,139.86,139.82,7.87605242]
[1767934927984,2.20076143,139.86,139.83,0.72419692]
[1767934928879,0.03003421,139.87,139.83,0.72419692]
[1767934929104,2.20076143,139.86,139.83,0.72419692]
[1767934929806,2.23079564,139.86,139.82,0.72419692]
[1767934930285,2.20076143,139.85,139.82,0.72419692]
[1767934930688,0.03003421,139.84,139.81,7.87665923]
[1767934930900,2.20076143,139.85,139.81,7.87665923]
[1767934931101,17.87278655,139.88,139.81,7.87665923]
[1767934931102,2.20076143,139.84,139.81,7.87665923]
[1767934931295,2.20076143,139.84,139.82,0.72419692]
[1767934933510,2.20076143,139.84,139.83,0.5]
[1767934934312,25.0178699,139.9,139.84,0.71854399]
[1767934934493,2.20076143,139.88,139.84,0.71854399]
[1767934935102,2.20076143,139.89,139.85,0.71854399]
[1767934935409,2.20076143,139.88,139.85,0.71854399]
[1767934936200,2.20076143,139.88,139.84,7.15086267]
[1767934936397,9.34982865,139.88,139.83,21.42990493]
[1767934936608,2.20076143,139.86,139.83,13.56]
[1767934936990,2.20076143,139.88,139.84,7.15096511]
[1767934937195,2.20076143,139.88,139.84,7.8695091]
[1767934938997,2.20076143,139.88,139.85,0.71854399]
[1767934942408,7.15612816,139.91,139.85,0.71854399]
[1767934942606,2.20076143,139.89,139.85,0.71854399]
[1767934943107,2.20076143,139.89,139.86,0.71854399]
[1767934948934,2.20076143,139.88,139.86,0.71854399]
[1767934959242,7.15612816,139.91,139.86,0.71854399]
[1767934959408,2.20076143,139.88,139.86,0.71854399]
[1767934960134,2.20076143,139.88,139.86,0.21854399]
[1767934960533,3.43872777,139.88,139.86,0.21854399]
[1767934964034,7.14816738,139.9,139.86,0.21854399]
[1767934964213,3.43872777,139.88,139.86,0.21854399]
[1767934965827,3.93876199,139.88,139.85,0.66847736]
[1767934966035,3.43872777,139.88,139.85,0.66847736]
[1767934967740,3.43872777,139.88,139.86,0.66847736]
[1767934968728,7.6482016,139.9,139.86,0.66847736]
[1767934968935,3.43872777,139.88,139.86,0.66847736]
[1767934969645,0.66477247,139.88,139.85,7.15050967]
[1767934969844,3.43872777,139.89,139.85,7.15050967]
[1767934970023,3.43872777,139.88,139.85,7.15050967]
[1767934970223,3.43872777,139.89,139.87,0.66847736]
[1767934970535,3.43872777,139.9,139.87,0.66847736]
[1767934970841,3.447404,139.91,139.87,0.66847736]
[1767934971221,0.00867623,139.91,139.88,0.66847736]
[1767934972228,0.00867623,139.91,139.89,7.81695116]
[1767934972640,0.6734487,139.91,139.89,7.1484738]
[1767934972939,0.00867623,139.91,139.89,7.81695116]
[1767934973317,3.447404,139.91,139.89,7.81695116]
[1767934975821,0.00867623,139.91,139.89,0.66847736]
[1767934977027,0.00867623,139.91,139.89,7.8169198]
[1767934978345,4.10350024,139.9,139.87,0.66847736]
[1767934979948,4.10350024,139.9,139.87,7.81791131]
[1767934981246,4.11217647,139.91,139.87,7.81791131]
[1767934981447,4.11217647,139.91,139.88,0.66847736]
[1767934981749,4.11217647,139.91,139.89,0.66847736]
[1767934981750,0.00867623,139.91,139.89,0.66847736]
[1767934982144,0.1,139.92,139.89,0.66847736]
[1767934982145,0.00867623,139.92,139.91,0.66847736]
[1767934982338,0.76477247,139.94,139.91,0.66847736]
[1767934983058,4.20350024,139.94,139.91,0.66847736]
[1767934983236,4.20350024,139.94,139.91,7.81544917]
[1767934983430,3.53872777,139.94,139.91,7.81544917]
[1767934984966,0.1,139.94,139.91,7.81544917]
[1767934986857,0.1,139.94,139.92,0.71983468]
[1767934987833,0.1,139.94,139.92,7.86650518]
[1767934989149,0.1,139.96,139.94,0.71983468]
[1767934989458,0.1,139.96,139.93,0.71983468]
[1767934989459,0.76739025,139.96,139.93,0.71983468]
[1767934989844,4.20611802,139.96,139.93,0.71983468]
[1767934990335,0.76739025,139.96,139.93,7.86610166]
[1767934990535,0.76739025,139.96,139.94,0.71983468]
[1767934990536,0.1,139.96,139.94,0.71983468]
[1767934990951,0.1,139.97,139.94,4.44288559]
[1767934991860,0.1,139.97,139.95,0.71983468]
[1767934992353,0.1,139.97,139.95,7.86518919]
[1767934993655,0.1,139.98,139.96,0.65647508]
[1767934995447,0.1,139.98,139.97,0.5]
[1767934995664,0.78474339,139.99,139.97,0.5]
[1767934996243,4.12347116,139.98,139.97,0.5]
[1767934997163,0.68474339,139.98,139.97,0.5]
[1767934998863,4.12347116,139.98,139.97,0.5]
[1767934999753,0.68474339,139.98,139.97,0.5]
[1767935003069,0.68474339,139.98,139.97,0.44]
[1767935005970,0.68474339,139.97,139.91,0.65647508]
[1767935006262,0.68474339,139.97,139.93,4.09520285]
[1767935006769,0.68474339,139.97,139.93,11.24156003]
[1767935006967,0.68474339,139.97,139.94,0.65647508]
[1767935007169,0.68474339,139.98,139.95,0.65647508]
[1767935007752,0.68474339,139.98,139.94,4.09520285]
[1767935008574,0.68474339,139.98,139.94,0.65647508]
[1767935008769,0.68474339,139.98,139.94,4.09520285]
[1767935009355,0.68474339,139.98,139.95,0.65647508]
[1767935009560,0.68474339,139.98,139.95,4.09520285]
[1767935010673,0.68474339,139.98,139.95,0.65647508]
[1767935010862,4.12347116,139.98,139.94,7.80220437]
[1767935011069,0.68474339,139.97,139.94,7.14572929]
[1767935011269,0.68474339,139.97,139.94,7.80220437]
[1767935014777,0.68474339,139.97,139.94,0.65647508]
[1767935020379,0.71541253,139.96,139.92,20.85046232]
[1767935020757,0.71541253,139.96,139.93,7.80991112]
[1767935024587,0.71541253,139.97,139.94,0.6636784]
[1767935025972,0.71541253,139.97,139.94,7.80950453]
[1767935027090,0.71541253,139.98,139.95,0.6636784]
[1767935027287,0.81541253,139.99,139.95,0.6636784]
[1767935027493,0.81541253,139.99,139.96,0.6636784]
[1767935027968,0.1,139.99,139.96,0.6636784]
[1767935028170,0.1,139.99,139.97,0.6636784]
[1767935031388,0.1,139.99,139.97,7.80796125]
[1767935032095,0.1,139.99,139.98,0.6636784]
[1767935032808,0.81541253,140.01,139.98,0.6636784]
[1767935034607,0.71541253,140.0,139.97,7.14428285]
[1767935034976,0.71541253,140.0,139.96,13.04]
[1767935034977,0.71541253,139.99,139.96,13.04]
[1767935035178,0.71541253,139.99,139.96,20.84857164]
[1767935036405,0.71541253,139.99,139.96,20.84854687]
[1767935037677,3.01328221,140.01,139.97,0.6636784]
[1767935038095,0.71541253,140.0,139.97,0.6636784]
[1767935040078,0.71541253,140.0,139.97,7.80789391]
[1767935047009,0.71541253,140.0,139.97,7.14421551]
[1767935049000,0.71541253,140.0,139.98,2.19786968]
[1767935049310,1e-08,140.04,140.02,0.68826512]
[1767935049502,1e-08,140.04,140.03,2.19786968]
[1767935050415,1e-08,140.04,140.03,9.33919653]
[1767935050619,1e-08,140.04,140.03,2.19786968]
[1767935051112,1e-08,140.04,140.03,10.02746165]
[1767935051698,1e-08,140.05,140.03,10.02746165]
[1767935051901,1e-08,140.05,140.04,2.19786968]
[1767935052794,1e-08,140.05,140.04,7.1408169]
[1767935053903,0.67396416,140.05,140.02,20.18181848]
[1767935054517,0.67396416,140.05,140.02,22.37968816]
[1767935058226,1e-08,140.05,140.04,0.68826512]
[1767935058412,1e-08,140.05,140.04,2.8861348]
[1767935058601,2.19786968,140.1,140.05,0.68826512]
[1767935058807,16.09283172,140.11,140.06,2.19786968]
[1767935059006,13.89496204,140.11,140.06,2.8861348]
[1767935059307,16.09283172,140.11,140.06,2.8861348]
[1767935059912,16.09283172,140.11,140.06,10.02557927]
[1767935060212,16.09283172,140.11,140.06,7.82770959]
[1767935060408,2.19786968,140.1,140.06,7.13944447]
[1767935060606,0.67396415,140.09,140.06,7.13944447]
[1767935067850,2.87183383,140.09,140.06,7.13944447]
[1767935068439,0.67396415,140.09,140.06,7.82770959]
[1767935069513,0.67179935,140.07,140.05,13.04]
[1767935069834,0.67179935,140.07,140.04,63.07258826]
[1767935069835,0.45962801,140.06,140.02,20.86977011]
[1767935070413,0.45962801,140.06,140.03,0.68826512]
[1767935070811,0.45962801,140.06,140.03,7.82953761]
[1767935071439,0.67396415,140.09,140.04,0.68826512]
[1767935071640,0.45748486,140.07,140.04,0.68826512]
[1767935071818,0.67179935,140.06,140.03,7.14127249]
[1767935072017,0.67179935,140.06,140.03,7.82953761]
[1767935073716,0.42045482,140.07,140.04,0.69370858]
[1767935074308,2.19786968,140.07,140.03,7.14127249]
[1767935074512,2.90632877,140.06,140.02,21.15970934]
[1767935074714,0.70845909,140.06,140.02,21.15970934]
[1767935074928,0.70845909,140.06,140.03,0.69370858]
[1767935075539,2.90632877,140.08,140.04,0.69370858]
[1767935077119,7.8473021,140.08,140.04,0.69370858]
[1767935077318,0.42333487,140.07,140.04,0.69370858]
[1767935077532,9.33671269,140.08,140.01,7.83572637]
[1767935077533,0.70560784,140.05,140.01,7.83572637]
[1767935077735,2.19786968,140.04,140.01,7.83572637]
[1767935077913,2.62402728,140.04,140.01,7.83572637]
[1767935078348,2.62402728,140.04,140.0,0.69370858]
[1767935078727,2.62402728,140.04,140.0,7.83654827]
[1767935080230,0.4261576,140.04,140.0,7.83654827]
[1767935080543,0.4261576,140.04,140.01,0.69370858]
[1767935081340,30.8869446,140.08,140.02,0.69370858]
[1767935081341,0.71136823,140.06,140.02,0.69370858]
[1767935081543,2.90923791,140.06,140.02,0.69370858]
[1767935081730,0.71136823,140.06,140.02,0.69370858]
[1767935082657,2.90923791,140.06,140.02,0.69370858]
[1767935084158,2.90923791,140.06,140.02,7.83548534]
[1767935084654,4.14143804,140.06,140.02,7.83548534]
[1767935086554,4.14143804,140.06,140.03,0.69370858]
[1767935090955,3.43006981,140.06,140.03,0.69370858]
[1767935091143,4.14143804,140.07,140.03,0.69370858]
[1767935091335,3.43006981,140.06,140.03,0.69370858]
[1767935091964,3.85052463,140.06,140.03,0.69370858]
[1767935093257,0.42045482,140.06,140.03,7.83499265]
[1767935094665,4.14143804,140.07,140.03,7.83499265]
[1767935094849,4.14143804,140.07,140.04,0.69370858]
[1767935096063,3.43006981,140.07,140.04,0.69370858]
[1767935098553,7.85018278,140.08,140.04,0.69370858]
[1767935098866,3.43006981,140.07,140.04,0.69370858]
[1767935099569,3.85052463,140.07,140.04,0.69370858]
[1767935100853,4.1385289,140.06,140.03,13.73370858]
[1767935101247,3.43006981,140.06,140.03,13.73370858]
[1767935101467,3.43006981,140.06,140.04,0.69370858]
[1767935102459,11.28076491,140.07,140.04,0.69370858]
[1767935103966,7.84261333,140.09,140.04,0.69370858]
[1767935104272,4.13392132,140.1,140.05,0.69226735]
[1767935104665,11.27171247,140.1,140.05,7.83237677]
[1767935104862,11.27171247,140.1,140.06,0.69226735]
[1767935105071,7.84164266,140.1,140.06,13.67226735]
[1767935105269,11.27171247,140.1,140.06,13.67226735]
[1767935106381,11.27171247,140.1,140.06,13.04]
[1767935106975,4.13392132,140.1,140.07,0.69226735]
[1767935107163,4.13392132,140.1,140.07,0.63226735]
[1767935109263,13.89496204,140.11,140.08,0.65713194]
[1767935109970,14.42144768,140.11,140.08,0.65713194]
[1767935110175,17.85151749,140.11,140.08,0.65713194]
[1767935110557,17.85151749,140.11,140.07,0.65713194]
[1767935110558,0.72228858,140.1,140.07,0.65713194]
[1767935111359,14.61922843,140.11,140.08,0.65713194]
[1767935111557,18.04929824,140.11,140.08,0.65713194]
[1767935111977,0.72228858,140.09,140.06,0.65713194]
[1767935112177,0.72228858,140.09,140.06,13.04]
[1767935112383,4.15235839,140.09,140.06,13.04]
[1767935112584,3.95851348,140.08,140.05,0.65713194]
[1767935112764,4.1543362,140.08,140.04,20.83784187]
[1767935113890,0.52648564,140.07,140.04,20.83784187]
[1767935115489,0.52648564,140.07,140.04,13.04]
[1767935115964,4.15235839,140.06,140.03,0.65713194]
[1767935116165,4.15235839,140.06,140.02,20.83894318]
[1767935117285,4.15235839,140.06,140.03,0.65713194]
[1767935117589,0.72228858,140.06,140.03,0.65713194]
[1767935119384,0.72228858,140.06,140.03,7.79844863]
[1767935121187,11.29327863,140.08,140.04,0.65713194]
[1767935121578,4.1543362,140.08,140.04,0.65713194]
[1767935123385,0.52648564,140.07,140.04,0.65713194]
[1767935123592,0.72228858,140.06,140.03,0.65713194]
[1767935124175,4.15235839,140.06,140.03,0.65713194]
[1767935125391,4.15235839,140.06,140.02,7.79879579]
[1767935125594,3.95851348,140.05,140.02,20.83879579]
[1767935125796,0.52844367,140.05,140.02,20.83879579]
[1767935127102,3.43006981,140.06,140.02,20.83879579]